[Event "CZE-ch Youth B16 2022"]
[Site "Luhacovice"]
[Date "2022.03.15"]
[Round "5.12"]
[White "Zrubek, Adam"]
[Black "Zezula, Jakub"]
[Result "1/2-1/2"]
[ECO "C88"]
[WhiteElo "1661"]
[BlackElo "1891"]
[Annotator "NA"]
[PlyCount "106"]
[EventDate "2022.03.12"]
[EventType "swiss"]
[EventCountry "CZE"]
[SourceTitle "playchess.com"]
[Source "ChessBase"]
[SourceQuality "1"]
[TimeControl "40/5400+30:1800+30"]

1. e4 e5 2. Nf3 Nc6 3. Bb5 a6 4. Ba4 Nf6 5. O-O Be7 6. Re1 b5 7. Bb3 d6 8. h3 Na5 9. c3 Nxb3 10. Qxb3 Be6 11. Qd1 c5 12. d4 cxd4 13. cxd4 Qc7 14. b3 O-O 15. Bb2 exd4 16. Nxd4 Bd7 17. Nd2 Rfe8 18. Qf3 Rac8 19. Nf1 h6 20. Ng3 Nh7 21. Ndf5 Ng5 22. Qe3 Bxf5 23. Nxf5 Bf8 24. Qg3 Qc2 25. Bxg7 Bxg7 26. Nxg7 Kxg7 27. h4 Rc5 28. f4 {[#]} Rxe4 $1 29. fxg5 hxg5 30. hxg5 Rce5 31. Rxe4 Qxe4 32. Rf1 d5 33. Qf2 Qe3 34. Qxe3 Rxe3 35. Rd1 Re2 36. Rxd5 Rxa2 37. Rd6 Ra3 38. Kh2 b4 39. Rb6 a5 40. Rb5 Kg6 41. Rc5 Kh5 42. Rd5 $17 (42. Kg1 $15 {is superior.}) 42... Kg4 43. Rb5 Kf4 44. Rc5 Ke4 45. Rb5 Rxb3 46. Rxa5 Ra3 47. Rb5 b3 48. Rb7 Kd4 49. Rxf7 Ra5 50. g6 Rg5 51. Rf3 Kc4 52. Rg3 Rh5+ 53. Rh3 Rg5 1/2-1/2

[Event "CZE-ch Youth B16 2022"]
[Site "Luhacovice"]
[Date "2022.03.16"]
[Round "6.1"]
[White "Soucek, Petr"]
[Black "Dolensky, Filip"]
[Result "1/2-1/2"]
[ECO "A44"]
[WhiteElo "2194"]
[BlackElo "2021"]
[Annotator "ChessBase"]
[PlyCount "84"]
[EventDate "2022.03.12"]
[EventType "swiss"]
[EventCountry "CZE"]
[SourceTitle "playchess.com"]
[Source "ChessBase"]
[SourceQuality "1"]
[TimeControl "40/5400+30:1800+30"]

1. d4 c5 2. d5 e5 3. e4 d6 4. Nc3 a6 5. a4 Be7 6. b3 Nf6 7. Nf3 Nbd7 8. Be2 O-O 9. O-O Ne8 10. Nd2 g6 11. Nc4 Ng7 12. a5 f5 13. exf5 Nxf5 14. Na4 Rb8 15. Nab6 Nxb6 16. Nxb6 Bd7 17. Re1 Bf6 18. Bb2 Be8 19. Bd3 Nd4 20. Bxd4 cxd4 21. Qg4 Rf7 22. Bf5 Kg7 23. Be6 Re7 24. g3 Qc7 25. Qe4 Bb5 26. Ra2 Rbe8 27. Bh3 Qc3 28. Bf1 Bd7 29. Nxd7 Rxd7 30. Rd1 Qc5 31. Bc4 Rf8 32. Rd3 Rdf7 33. Rf3 Bd8 34. Rxf7+ Rxf7 35. h4 Bxa5 36. h5 d3 37. cxd3 Bb6 38. d4 Qxd4 39. Qxd4 Bxd4 40. hxg6 hxg6 41. Kg2 Rc7 42. Rc2 Rc5 1/2-1/2

[Event "CZE-ch Youth B16 2022"]
[Site "Luhacovice"]
[Date "2022.03.16"]
[Round "6.2"]
[White "Stejskal, Michal"]
[Black "Smolik, Jachym"]
[Result "0-1"]
[ECO "B11"]
[WhiteElo "1857"]
[BlackElo "2277"]
[Annotator "RC"]
[PlyCount "96"]
[EventDate "2022.03.12"]
[EventType "swiss"]
[EventCountry "CZE"]
[SourceTitle "playchess.com"]
[Source "ChessBase"]
[SourceQuality "1"]
[TimeControl "40/5400+30:1800+30"]

1. e4 {[%emt 0:00:04]} c6 {[%emt 0:00:07]} 2. Nc3 {[%emt 0:00:11]} d5 {[%emt 0:00:07]} 3. Nf3 {[%emt 0:00:06]} Bg4 {[%emt 0:00:52]} 4. h3 {[%emt 0:00:59]} Bxf3 {[%emt 0:00:24]} 5. Qxf3 {[%emt 0:00:10]} e6 {[%emt 0:00:03]} 6. exd5 {[%emt 0:01:23]} cxd5 {[%emt 0:01:15]} 7. d4 {[%emt 0:00:59]} Nc6 {[%emt 0:02:42]} 8. Bb5 {[%emt 0:08:08]} Rc8 {[%emt 0:02:56]} 9. O-O {[%emt 0:04:25]} Nf6 {[%emt 0:04:38]} 10. Re1 {[%emt 0:04:01]} Be7 {[%emt 0:02:13]} 11. Ne2 {[%emt 0:10:01]} a6 {[%emt 0:12:49]} 12. Bxc6+ {[%emt 0:01:38]} Rxc6 {[%emt 0:00:05]} 13. c3 {[%emt 0:00:21]} Ne4 {[%emt 0:06:57]} 14. Ng3 {[%emt 0:02:31]} Nxg3 {[%emt 0:00:07]} 15. Qxg3 {[%emt 0:00:10]} Bf6 {[%emt 0:00:20]} 16. Bf4 {[%emt 0:06:49]} O-O {[%emt 0:02:40]} 17. Re2 {[%emt 0:04:41]} b5 {[%emt 0:02:31]} 18. a3 {[%emt 0:07:57]} Qe7 {[%emt 0:03:01]} 19. Rae1 {[%emt 0:02:17]} Rfc8 {[%emt 0:02:06]} 20. Be5 {[%emt 0:04:36]} a5 {[%emt 0:08:45]} 21. Qf3 {[%emt 0:05:32]} Bxe5 {[%emt 0:04:10]} 22. Rxe5 {[%emt 0:01:01]} Qf8 {[%emt 0:00:10]} 23. R5e3 {[%emt 0:08:29]} h6 {[%emt 0:05:40]} 24. Qg3 {[%emt 0:02:39]} Qd8 {[%emt 0:01:04]} 25. f4 {[%emt 0:02:22]} Qf6 {[%emt 0:01:26]} 26. Re5 {[%emt 0:00:54]} b4 {[%emt 0:02:19]} 27. axb4 {[%emt 0:00:22]} axb4 {[%emt 0:00:06]} 28. R1e3 {[%emt 0:00:51]} Kh7 {[%emt 0:03:31]} 29. Qf3 {[%emt 0:01:44]} bxc3 {[%emt 0:02:15]} 30. bxc3 {[%emt 0:00:07]} g6 {[%emt 0:00:42]} 31. Kh2 {[%emt 0:01:13]} Ra6 {[%emt 0:02:23]} 32. g4 {[%emt 0:01:41]} Ra2+ {[%emt 0:01:07]} 33. Re2 {[%emt 0:00:24]} Ra3 {[%emt 0:03:23]} 34. R2e3 {[%emt 0:01:19]} Rb8 {[%emt 0:01:39]} 35. f5 {[%emt 0:02:56]} gxf5 {[%emt 0:07:08]} 36. gxf5 {[%emt 0:01:37]} Ra2+ {[%emt 0:00:22]} 37. Re2 {[%emt 0:02:32]} Rbb2 {[%emt 0:00:21]} 38. Rxb2 {[%emt 0:01:18]} Rxb2+ {[%emt 0:00:04]} 39. Kh1 {[%emt 0:00:11]} Qg5 {[%emt 0:01:30]} 40. Qg4 {[%emt 0:09:11]} Qc1+ {[%emt 0:00:51]} 41. Qg1 {[%emt 0:30:14]} Qf4 {[%emt 0:30:15]} 42. Re3 {[%emt 0:01:18]} Qxf5 {[%emt 0:03:24]} 43. Qg4 {[%emt 0:00:00]} Rb1+ {[%emt 0:00:00]} 44. Kg2 {[%emt 0:00:00]} Qf1+ {[%emt 0:00:00]} 45. Kg3 {[%emt 0:00:00]} Rb2 {[%emt 0:00:00]} 46. Kh4 {[%emt 0:00:00]} Qf6+ {[%emt 0:00:00]} 47. Kh5 {[%emt 0:00:00]} Rf2 {[%emt 0:00:00]} 48. Re5 {[%emt 0:00:00]} Rf4 {[%emt 0:00:00]} 0-1

[Event "CZE-ch Youth B16 2022"]
[Site "Luhacovice"]
[Date "2022.03.16"]
[Round "6.3"]
[White "Hak, David"]
[Black "Jirasko, Miroslav"]
[Result "1-0"]
[ECO "B15"]
[WhiteElo "2132"]
[BlackElo "1933"]
[Annotator "ChessBase"]
[PlyCount "91"]
[EventDate "2022.03.12"]
[EventType "swiss"]
[EventCountry "CZE"]
[SourceTitle "playchess.com"]
[Source "ChessBase"]
[SourceQuality "1"]
[TimeControl "40/5400+30:1800+30"]

1. e4 {[%emt 0:00:16]} c6 {[%emt 0:00:09]} 2. d4 {[%emt 0:00:51]} d5 {[%emt 0:00:06]} 3. Nc3 {[%emt 0:00:19]} dxe4 {[%emt 0:00:06]} 4. Nxe4 {[%emt 0:00:03]} Nf6 {[%emt 0:00:06]} 5. Nxf6+ {[%emt 0:00:03]} exf6 {[%emt 0:00:06]} 6. Nf3 {[%emt 0:00:21]} Bd6 {[%emt 0:03:43]} 7. Bd3 {[%emt 0:00:24]} O-O {[%emt 0:03:31]} 8. O-O {[%emt 0:00:04]} Re8 {[%emt 0:02:02]} 9. c3 {[%emt 0:03:05]} Nd7 {[%emt 0:00:42]} 10. Qc2 {[%emt 0:00:33]} Nf8 {[%emt 0:00:06]} 11. Be3 {[%emt 0:03:06]} Bg4 {[%emt 0:03:00]} 12. Nd2 {[%emt 0:00:47]} Bc7 {[%emt 0:17:08]} 13. Rfe1 {[%emt 0:08:50]} Qd6 {[%emt 0:01:24]} 14. Nf1 {[%emt 0:00:26]} Rad8 {[%emt 0:02:57]} 15. f3 {[%emt 0:03:07]} Bc8 {[%emt 0:04:51]} 16. Bf2 {[%emt 0:00:30]} Rxe1 {[%emt 0:03:19]} 17. Rxe1 {[%emt 0:00:24]} Be6 {[%emt 0:05:33]} 18. Bg3 {[%emt 0:04:44]} Qd7 {[%emt 0:00:08]} 19. Bxc7 {[%emt 0:00:34]} Qxc7 {[%emt 0:00:09]} 20. Ne3 {[%emt 0:07:02]} g6 {[%emt 0:03:49]} 21. b4 {[%emt 0:12:57]} b6 {[%emt 0:05:13]} 22. Qe2 {[%emt 0:05:26]} a5 {[%emt 0:04:04]} 23. bxa5 {[%emt 0:04:53]} bxa5 {[%emt 0:00:10]} 24. Bc4 {[%emt 0:01:38]} Rb8 {[%emt 0:06:00]} 25. Ng4 {[%emt 0:06:00]} Bxc4 {[%emt 0:11:42]} 26. Qxc4 {[%emt 0:00:25]} Kg7 {[%emt 0:00:58]} 27. Qd3 {[%emt 0:13:47]} h5 {[%emt 0:00:24]} 28. Ne3 {[%emt 0:00:44]} Rb2 {[%emt 0:00:21]} 29. Re2 {[%emt 0:01:14]} Qb8 {[%emt 0:00:13]} 30. Rxb2 {[%emt 0:00:54]} Qxb2 {[%emt 0:00:06]} 31. Qc2 {[%emt 0:00:17]} Qa1+ {[%emt 0:00:26]} 32. Nd1 {[%emt 0:00:27]} Nd7 {[%emt 0:02:54]} 33. Kf2 {[%emt 0:00:38]} Nb6 {[%emt 0:00:51]} 34. Ke2 {[%emt 0:01:45]} Nd5 {[%emt 0:08:55]} 35. g3 {[%emt 0:02:29]} a4 {[%emt 0:00:37]} 36. Kd2 {[%emt 0:03:41]} a3 {[%emt 0:01:23]} 37. Qb3 {[%emt 0:00:47]} g5 {[%emt 0:03:47]} 38. Kc2 {[%emt 0:00:36]} Nb6 {[%emt 0:01:08]} 39. Qxa3 {[%emt 0:01:02]} f5 {[%emt 0:00:16]} 40. Qb2 {[%emt 0:00:24]} Qxb2+ {[%emt 0:00:16]} 41. Nxb2 {[%emt 0:30:01]} Nd5 {[%emt 0:30:18]} 42. a4 {[%emt 0:01:58]} g4 {[%emt 0:00:05]} 43. f4 {[%emt 0:04:19]} Nxf4 {[%emt 0:00:05]} 44. gxf4 {[%emt 0:01:10]} h4 {[%emt 0:00:07]} 45. Nd3 {[%emt 0:00:26]} h3 {[%emt 0:02:34]} 46. a5 {[%emt 0:00:26]} 1-0

[Event "CZE-ch Youth B16 2022"]
[Site "Luhacovice"]
[Date "2022.03.16"]
[Round "6.4"]
[White "Bezdek, Tomas"]
[Black "Winter, Ondrej"]
[Result "0-1"]
[ECO "B38"]
[WhiteElo "1855"]
[BlackElo "2147"]
[Annotator "ChessBase"]
[PlyCount "140"]
[EventDate "2022.03.12"]
[EventType "swiss"]
[EventCountry "CZE"]
[SourceTitle "playchess.com"]
[Source "ChessBase"]
[SourceQuality "1"]
[TimeControl "40/5400+30:1800+30"]

1. e4 {[%emt 0:00:04]} c5 {[%emt 0:00:09]} 2. Nf3 {[%emt 0:00:18]} Nc6 {[%emt 0:00:17]} 3. d4 {[%emt 0:00:32]} cxd4 {[%emt 0:00:07]} 4. Nxd4 {[%emt 0:00:06]} g6 {[%emt 0:00:02]} 5. c4 {[%emt 0:00:24]} Bg7 {[%emt 0:00:06]} 6. Be3 {[%emt 0:00:07]} Nf6 {[%emt 0:00:05]} 7. Nc3 {[%emt 0:00:15]} d6 {[%emt 0:00:03]} 8. Be2 {[%emt 0:00:21]} O-O {[%emt 0:00:08]} 9. O-O {[%emt 0:01:52]} Bd7 {[%emt 0:00:04]} 10. Nc2 {[%emt 0:00:22]} Rc8 {[%emt 0:01:01]} 11. Qd2 {[%emt 0:03:40]} Be6 {[%emt 0:02:48]} 12. f4 {[%emt 0:00:59]} a6 {[%emt 0:03:18]} 13. Rac1 {[%emt 0:04:48]} Na5 {[%emt 0:30:09]} 14. b3 {[%emt 0:04:31]} Qc7 {[%emt 0:01:51]} 15. Nb4 {[%emt 0:07:56]} Qb8 {[%emt 0:17:16]} 16. f5 {[%emt 0:17:23]} Bd7 {[%emt 0:15:28]} 17. Nbd5 {[%emt 0:06:08]} Nc6 {[%emt 0:02:02]} 18. Nxf6+ {[%emt 0:11:50]} Bxf6 {[%emt 0:00:29]} 19. Nd5 {[%emt 0:00:52]} Bh8 {[%emt 0:00:42]} 20. f6 {[%emt 0:06:04]} e6 {[%emt 0:00:57]} 21. Ne7+ {[%emt 0:01:47]} Nxe7 {[%emt 0:00:46]} 22. fxe7 {[%emt 0:00:01]} Rfe8 {[%emt 0:00:01]} 23. Bf4 {[%emt 0:02:09]} e5 {[%emt 0:00:58]} 24. Bg5 {[%emt 0:00:09]} Be6 {[%emt 0:04:35]} 25. c5 {[%emt 0:08:12]} Rc6 {[%emt 0:04:10]} 26. Bc4 {[%emt 0:01:57]} dxc5 27. Bxe6 {[%emt 0:01:24]} Rxe6 {[%emt 0:00:52]} 28. Qd5 {[%emt 0:17:47]} Qd6 {[%emt 0:03:36]} 29. Rfd1 {[%emt 0:00:27]} Qxd5 {[%emt 0:00:32]} 30. exd5 {[%emt 0:00:07]} Rd6 {[%emt 0:00:11]} 31. Rxc5 {[%emt 0:00:13]} f6 {[%emt 0:02:13]} 32. Bc1 {[%emt 0:01:39]} Kf7 {[%emt 0:04:48]} 33. Rc7 {[%emt 0:00:08]} Rxe7 {[%emt 0:00:09]} 34. Rxe7+ {[%emt 0:00:09]} Kxe7 {[%emt 0:00:03]} 35. Ba3 {[%emt 0:00:00]} Kd7 {[%emt 0:03:23]} 36. Bxd6 {[%emt 0:00:07]} Kxd6 {[%emt 0:00:02]} 37. Rc1 {[%emt 0:00:41]} f5 {[%emt 0:01:08]} 38. Rc8 {[%emt 0:00:49]} Bg7 {[%emt 0:01:48]} 39. Rb8 {[%emt 0:00:42]} b5 {[%emt 0:00:16]} 40. Rb6+ {[%emt 0:00:36]} Kxd5 {[%emt 0:00:05]} 41. Rxa6 {[%emt 0:30:12]} Bf8 {[%emt 0:31:52]} 42. Kf1 {[%emt 0:01:06]} Bc5 {[%emt 0:00:00]} 43. Ke2 {[%emt 0:00:00]} b4 {[%emt 0:00:00]} 44. Ra8 {[%emt 0:00:00]} Kd4 {[%emt 0:00:00]} 45. h3 {[%emt 0:00:00]} e4 {[%emt 0:00:00]} 46. Rh8 {[%emt 0:00:00]} Kc3 {[%emt 0:00:00]} 47. Rxh7 {[%emt 0:00:00]} Kb2 {[%emt 0:00:00]} 48. Rc7 {[%emt 0:00:00]} Bd4 {[%emt 0:00:00]} 49. Rb7 {[%emt 0:00:00]} Bc3 {[%emt 0:00:00]} 50. Ra7 {[%emt 0:00:00]} f4 {[%emt 0:00:00]} 51. Ra8 {[%emt 0:00:00]} g5 {[%emt 0:00:00]} 52. Ra6 {[%emt 0:00:00]} Bd4 {[%emt 0:00:00]} 53. Ra5 {[%emt 0:00:00]} Bf6 {[%emt 0:00:00]} 54. Kd1 {[%emt 0:00:00]} Bd8 {[%emt 0:03:41]} 55. Rb5 {[%emt 0:00:00]} Kc3 {[%emt 0:02:45]} 56. Rc5+ {[%emt 0:00:11]} Kd4 {[%emt 0:00:11]} 57. Rc8 {[%emt 0:05:47]} Be7 {[%emt 0:00:06]} 58. Ke2 {[%emt 0:00:14]} Kd5 {[%emt 0:00:44]} 59. Re8 {[%emt 0:01:22]} Bd6 {[%emt 0:00:32]} 60. Rg8 {[%emt 0:00:30]} Be7 {[%emt 0:00:06]} 61. Rg7 {[%emt 0:00:36]} Bf6 {[%emt 0:00:17]} 62. Rb7 {[%emt 0:00:26]} Kc5 {[%emt 0:00:03]} 63. Rf7 {[%emt 0:00:07]} Bd8 {[%emt 0:00:16]} 64. h4 {[%emt 0:00:37]} gxh4 {[%emt 0:03:40]} 65. Rxf4 {[%emt 0:00:15]} Kd4 {[%emt 0:00:03]} 66. Rf7 {[%emt 0:00:27]} Bg5 {[%emt 0:01:39]} 67. Rc7 {[%emt 0:00:19]} Kd5 {[%emt 0:00:08]} 68. Rg7 {[%emt 0:01:21]} Bf6 {[%emt 0:00:28]} 69. Rg8 {[%emt 0:01:05]} Kd4 {[%emt 0:01:06]} 70. Rd8+ {[%emt 0:00:58]} Bxd8 {[%emt 0:00:13]} 0-1

[Event "CZE-ch Youth B16 2022"]
[Site "Luhacovice"]
[Date "2022.03.16"]
[Round "6.6"]
[White "Vaclavik, Jan"]
[Black "Le, Anh Dung"]
[Result "0-1"]
[ECO "D10"]
[WhiteElo "1997"]
[BlackElo "1998"]
[Annotator "NA"]
[PlyCount "70"]
[EventDate "2022.03.12"]
[EventType "swiss"]
[EventCountry "CZE"]
[SourceTitle "playchess.com"]
[Source "ChessBase"]
[SourceQuality "1"]
[TimeControl "40/5400+30:1800+30"]

1. d4 {[%emt 0:00:06]} d5 {[%emt 0:00:19]} 2. c4 {[%emt 0:00:24]} c6 {[%emt 0:00:07]} 3. cxd5 {[%emt 0:00:16]} cxd5 {[%emt 0:00:06]} 4. Bf4 {[%emt 0:00:05]} Nc6 {[%emt 0:00:28]} 5. e3 {[%emt 0:00:08]} a6 {[%emt 0:00:24]} 6. Nc3 {[%emt 0:00:10]} Nf6 {[%emt 0:00:05]} 7. Nf3 {[%emt 0:00:31]} Bg4 {[%emt 0:00:13]} 8. Rc1 {[%emt 0:01:45]} e6 {[%emt 0:01:00]} 9. Be2 {[%emt 0:05:15]} Bxf3 {[%emt 0:03:38]} 10. Bxf3 {[%emt 0:00:12]} Bd6 {[%emt 0:00:32]} 11. Bxd6 {[%emt 0:07:41]} Qxd6 {[%emt 0:00:26]} 12. O-O {[%emt 0:00:12]} O-O {[%emt 0:00:07]} 13. Na4 {[%emt 0:02:23]} b5 {[%emt 0:11:29]} 14. Nc5 {[%emt 0:03:14]} Nd7 {[%emt 0:09:42]} 15. e4 {[%emt 0:08:03]} (15. Qd2 $14) 15... Nb6 {[%emt 0:02:37]} 16. Qd3 {[%emt 0:13:08]} Ra7 {[%emt 0:06:08]} (16... e5 $142) 17. Rfd1 {[%emt 0:08:25]} Rd8 {[%emt 0:08:09]} 18. b3 {[%emt 0:07:31]} Nb4 {[%emt 0:11:13]} 19. Qe2 {[%emt 0:08:00]} dxe4 {[%emt 0:06:05]} 20. Bxe4 {[%emt 0:06:09]} N4d5 {[%emt 0:01:26]} 21. Bb1 {[%emt 0:06:00]} Nf6 {[%emt 0:02:28]} 22. Qf3 {[%emt 0:18:40]} Nbd5 {[%emt 0:02:09]} 23. g3 {[%emt 0:02:03]} Rc7 {[%emt 0:07:46]} 24. Re1 {[%emt 0:00:18]} Rdc8 {[%emt 0:02:48]} 25. Rcd1 {[%emt 0:00:30]} g6 {[%emt 0:03:48]} 26. h4 {[%emt 0:00:58]} Kg7 {[%emt 0:01:24]} 27. Kh2 {[%emt 0:00:28]} b4 {[%emt 0:03:12]} 28. Rd3 {[%emt 0:01:06]} Nc3 {[%emt 0:00:48]} 29. Bc2 {[%emt 0:00:21]} Nd7 {[%emt 0:01:26]} 30. Rxc3 {[%emt 0:00:46]} bxc3 {[%emt 0:00:45]} 31. Ne4 {[%emt 0:00:22]} Qxd4 {[%emt 0:04:12]} 32. Rd1 $19 {[%emt 0:00:41]} Qe5 {[%emt 0:01:22]} 33. Qg2 {[%emt 0:00:24]} Nf6 {[%emt 0:01:27]} 34. f4 {[%emt 0:00:29]} Qa5 {[%emt 0:02:16]} 35. Ng5 {[%emt 0:00:29]} Ng4+ {[%emt 0:00:28]} 0-1

[Event "CZE-ch Youth B16 2022"]
[Site "Luhacovice"]
[Date "2022.03.16"]
[Round "6.7"]
[White "Vasinek, Martin"]
[Black "Paseka, Matyas"]
[Result "0-1"]
[ECO "E92"]
[WhiteElo "1594"]
[BlackElo "2058"]
[Annotator "ChessBase"]
[PlyCount "78"]
[EventDate "2022.03.12"]
[EventType "swiss"]
[EventCountry "CZE"]
[SourceTitle "playchess.com"]
[Source "ChessBase"]
[SourceQuality "1"]
[TimeControl "40/5400+30:1800+30"]

1. d4 {[%emt 0:00:04]} Nf6 {[%emt 0:00:07]} 2. c4 {[%emt 0:00:09]} g6 {[%emt 0:00:06]} 3. Nc3 {[%emt 0:00:05]} Bg7 {[%emt 0:00:06]} 4. e4 {[%emt 0:00:32]} d6 {[%emt 0:00:05]} 5. Nf3 {[%emt 0:00:37]} O-O {[%emt 0:00:07]} 6. Be2 {[%emt 0:01:22]} e5 {[%emt 0:00:07]} 7. d5 {[%emt 0:03:44]} a5 {[%emt 0:00:09]} 8. O-O {[%emt 0:00:56]} Na6 {[%emt 0:00:27]} 9. a3 {[%emt 0:02:26]} Bd7 {[%emt 0:01:14]} 10. Qc2 {[%emt 0:01:41]} a4 {[%emt 0:01:51]} 11. Be3 {[%emt 0:09:25]} Qe8 {[%emt 0:03:41]} 12. h3 {[%emt 0:06:40]} b6 {[%emt 0:05:16]} 13. b4 {[%emt 0:05:08]} axb3 {[%emt 0:00:10]} 14. Qxb3 {[%emt 0:00:11]} Nh5 {[%emt 0:01:24]} 15. Rab1 {[%emt 0:10:30]} Nf4 {[%emt 0:04:10]} 16. Bd1 {[%emt 0:02:24]} Qc8 {[%emt 0:11:40]} 17. Nd2 {[%emt 0:11:43]} Nc5 {[%emt 0:09:13]} 18. Bxc5 {[%emt 0:03:25]} bxc5 {[%emt 0:00:18]} 19. a4 {[%emt 0:09:46]} Bh6 {[%emt 0:03:26]} 20. Rb2 {[%emt 0:05:35]} Bxh3 {[%emt 0:19:18]} 21. gxh3 {[%emt 0:05:57]} Qxh3 {[%emt 0:00:08]} 22. Bf3 {[%emt 0:00:29]} Nd3 {[%emt 0:00:09]} 23. Bg2 {[%emt 0:01:58]} Qg4 {[%emt 0:00:08]} 24. Nf3 {[%emt 0:04:16]} Nxb2 {[%emt 0:01:09]} 25. Qxb2 {[%emt 0:00:09]} f5 {[%emt 0:00:17]} 26. Nh2 {[%emt 0:02:10]} Qh4 {[%emt 0:01:53]} 27. Nf3 {[%emt 0:01:21]} Qh5 {[%emt 0:00:19]} 28. Qc2 {[%emt 0:02:09]} fxe4 {[%emt 0:03:05]} 29. Nxe4 {[%emt 0:01:07]} Rxf3 {[%emt 0:02:57]} 30. Bxf3 {[%emt 0:00:47]} Qxf3 {[%emt 0:00:17]} 31. Rb1 {[%emt 0:00:46]} Rf8 {[%emt 0:01:15]} 32. Rb3 {[%emt 0:00:27]} Qh5 {[%emt 0:04:01]} 33. Rg3 {[%emt 0:00:37]} Bf4 {[%emt 0:00:26]} 34. Rg2 {[%emt 0:00:01]} Qf3 {[%emt 0:03:41]} 35. Nc3 {[%emt 0:07:06]} Kg7 {[%emt 0:03:28]} 36. a5 {[%emt 0:00:17]} Ra8 {[%emt 0:00:46]} 37. Kh1 {[%emt 0:01:19]} Rxa5 {[%emt 0:01:26]} 38. Nb1 {[%emt 0:01:34]} Ra2 {[%emt 0:01:34]} 39. Qxa2 {[%emt 0:00:26]} Qh5+ {[%emt 0:00:06]} 0-1

[Event "CZE-ch Youth B16 2022"]
[Site "Luhacovice"]
[Date "2022.03.16"]
[Round "6.8"]
[White "Dedek, Jan"]
[Black "Trojan, Matyas"]
[Result "1/2-1/2"]
[ECO "D31"]
[WhiteElo "1963"]
[BlackElo "1582"]
[Annotator "ChessBase"]
[PlyCount "61"]
[EventDate "2022.03.12"]
[EventType "swiss"]
[EventCountry "CZE"]
[SourceTitle "playchess.com"]
[Source "ChessBase"]
[SourceQuality "1"]
[TimeControl "40/5400+30:1800+30"]

1. d4 {[%emt 0:00:13]} d5 {[%emt 0:00:07]} 2. c4 {[%emt 0:00:29]} e6 {[%emt 0:00:33]} 3. Nc3 {[%emt 0:02:18]} a6 {[%emt 0:01:04]} 4. cxd5 {[%emt 0:00:30]} exd5 {[%emt 0:00:26]} 5. Nf3 {[%emt 0:01:18]} Nf6 {[%emt 0:01:11]} 6. Bg5 {[%emt 0:00:21]} c6 {[%emt 0:01:14]} 7. Qc2 {[%emt 0:03:11]} Be6 {[%emt 0:02:39]} 8. e3 {[%emt 0:00:07]} Nbd7 {[%emt 0:02:17]} 9. Bd3 {[%emt 0:00:25]} Bd6 {[%emt 0:02:09]} 10. O-O {[%emt 0:00:21]} Qc7 {[%emt 0:01:22]} 11. a3 {[%emt 0:04:54]} O-O {[%emt 0:01:44]} 12. b4 {[%emt 0:02:55]} h6 {[%emt 0:06:58]} 13. Bh4 {[%emt 0:00:07]} Nh5 {[%emt 0:01:21]} 14. Rab1 {[%emt 0:05:45]} g5 {[%emt 0:07:01]} 15. Bg3 {[%emt 0:00:07]} Nxg3 {[%emt 0:00:15]} 16. hxg3 {[%emt 0:00:11]} b5 {[%emt 0:03:59]} 17. Bf5 {[%emt 0:13:15]} Kg7 {[%emt 0:05:04]} 18. Bxe6 {[%emt 0:03:17]} fxe6 {[%emt 0:00:14]} 19. e4 {[%emt 0:00:54]} Nb6 {[%emt 0:02:35]} 20. exd5 {[%emt 0:02:56]} exd5 {[%emt 0:00:58]} 21. Rbe1 {[%emt 0:01:52]} Rae8 {[%emt 0:03:03]} 22. Qc1 {[%emt 0:01:44]} Nc4 {[%emt 0:09:49]} 23. Nxg5 {[%emt 0:16:52]} Rxe1 {[%emt 0:27:57]} 24. Rxe1 {[%emt 0:00:07]} hxg5 {[%emt 0:01:25]} 25. Qxg5+ {[%emt 0:00:06]} Kf7 {[%emt 0:00:35]} 26. Nxd5 {[%emt 0:20:50]} cxd5 {[%emt 0:05:02]} 27. Qxd5+ {[%emt 0:00:08]} Kg7 {[%emt 0:02:15]} 28. Qg5+ {[%emt 0:00:09]} Kf7 {[%emt 0:01:40]} 29. Qd5+ {[%emt 0:00:46]} Kg7 {[%emt 0:00:44]} 30. Qg5+ {[%emt 0:00:22]} Kf7 {[%emt 0:00:34]} 31. Qd5+ {[%emt 0:02:17]} 1/2-1/2

[Event "CZE-ch Youth B16 2022"]
[Site "Luhacovice"]
[Date "2022.03.16"]
[Round "6.9"]
[White "Zezula, Jakub"]
[Black "Pelc, Adam"]
[Result "1-0"]
[ECO "B38"]
[WhiteElo "1891"]
[BlackElo "1811"]
[Annotator "NA"]
[PlyCount "75"]
[EventDate "2022.03.12"]
[EventType "swiss"]
[EventCountry "CZE"]
[SourceTitle "playchess.com"]
[Source "ChessBase"]
[SourceQuality "1"]
[TimeControl "40/5400+30:1800+30"]

1. e4 c5 2. Nf3 g6 3. d4 cxd4 4. Nxd4 Bg7 5. c4 Nc6 6. Be3 d6 7. Nc3 Bd7 8. Be2 Nf6 9. Nc2 Rc8 10. O-O O-O 11. Rc1 Ne5 12. b3 a6 13. Nd4 Nc6 14. f3 Qa5 15. Qd2 Rfd8 16. Rfd1 Be8 17. Kh1 e6 18. Nxc6 Bxc6 19. b4 Qh5 20. b5 axb5 21. cxb5 Be8 22. a4 d5 23. f4 Qh4 24. e5 Nd7 25. a5 d4 26. Bxd4 Nxe5 27. g3 Qh6 28. fxe5 Qxd2 29. Rxd2 $16 Bh6 30. Rcd1 Bxd2 31. Rxd2 Kf8 32. Ne4 Rc1+ 33. Kg2 Rd5 34. Nf6 Bxb5 35. Nxd5 Bxe2 36. Nf6 Bf1+ 37. Kf2 Kg7 38. Be3 1-0

[Event "CZE-ch Youth B16 2022"]
[Site "Luhacovice"]
[Date "2022.03.16"]
[Round "6.10"]
[White "Mametev, Artem"]
[Black "Simek, Viktor"]
[Result "1/2-1/2"]
[ECO "C45"]
[WhiteElo "1848"]
[BlackElo "1527"]
[Annotator "NA"]
[PlyCount "67"]
[EventDate "2022.03.12"]
[EventType "swiss"]
[EventCountry "CZE"]
[SourceTitle "playchess.com"]
[Source "ChessBase"]
[SourceQuality "1"]
[TimeControl "40/5400+30:1800+30"]

1. e4 {[%emt 0:00:03]} e5 {[%emt 0:00:05]} 2. Nf3 {[%emt 0:00:01]} Nc6 {[%emt 0:00:05]} 3. d4 {[%emt 0:00:03]} exd4 {[%emt 0:00:05]} 4. Nxd4 {[%emt 0:00:02]} Bc5 {[%emt 0:00:06]} 5. Nxc6 {[%emt 0:00:02]} Qf6 {[%emt 0:00:15]} 6. Qd2 {[%emt 0:00:10]} dxc6 {[%emt 0:01:17]} 7. Nc3 {[%emt 0:00:42]} Be6 {[%emt 0:04:20]} 8. Na4 {[%emt 0:00:12]} Rd8 {[%emt 0:01:33]} 9. Bd3 {[%emt 0:00:06]} Bd4 {[%emt 0:00:05]} 10. O-O {[%emt 0:00:14]} a6 {[%emt 0:00:42]} 11. Qa5 {[%emt 0:01:03]} Qe5 {[%emt 0:03:49]} 12. Qxe5 {[%emt 0:03:25]} Bxe5 {[%emt 0:00:08]} 13. Be3 {[%emt 0:07:08]} (13. Nc5 $5 {[%cal Rc5b7]}) 13... Nf6 {[%emt 0:09:40]} 14. h3 {[%emt 0:08:34]} O-O {[%emt 0:07:50]} 15. Nc5 {[%emt 0:15:35]} Bc8 {[%emt 0:03:51]} 16. f4 {[%emt 0:10:20]} Bd4 {[%emt 0:07:48]} (16... Bxb2 $15 17. Rab1 Bd4 18. Bxd4 Rxd4) 17. Bxd4 {[%emt 0:00:08]} Rxd4 {[%emt 0:00:05]} 18. Rad1 {[%emt 0:05:27]} b6 {[%emt 0:09:44]} 19. c3 {[%emt 0:01:43]} Rdd8 {[%emt 0:01:37]} 20. Nb3 {[%emt 0:03:10]} c5 {[%emt 0:01:37]} 21. Bc2 {[%emt 0:02:47]} Bb7 {[%emt 0:07:01]} 22. e5 {[%emt 0:04:55]} Rxd1 {[%emt 0:04:31]} 23. Rxd1 {[%emt 0:00:22]} Nd5 {[%emt 0:00:16]} 24. g3 {[%emt 0:05:44]} Ne3 {[%emt 0:03:39]} 25. Rd2 {[%emt 0:00:10]} Nxc2 {[%emt 0:08:32]} 26. Rxc2 {[%emt 0:00:01]} Rd8 {[%emt 0:00:58]} 27. Rd2 {[%emt 0:00:01]} Rxd2 {[%emt 0:00:24]} 28. Nxd2 {[%emt 0:00:02]} Kf8 {[%emt 0:00:05]} 29. Kf2 {[%emt 0:00:28]} Ke7 {[%emt 0:00:13]} 30. Ke3 {[%emt 0:00:16]} Bg2 {[%emt 0:00:47]} 31. h4 {[%emt 0:01:39]} Ke6 $11 {[%emt 0:00:38]} 32. g4 {[%emt 0:01:16]} Bh3 {[%emt 0:02:15]} 33. Kf3 {[%emt 0:02:28]} h5 {[%emt 0:00:10]} 34. gxh5 {[%emt 0:00:24]} 1/2-1/2